[Event "58th Akiba Rubinstein B 2022"]
[Site "Polanica-Zdroj"]
[Date "2022.08.16"]
[Round "4.12"]
[White "Jedrzejko, Martyna"]
[Black "Graff, Slawomir"]
[Result "0-1"]
[ECO "C00"]
[WhiteElo "1533"]
[BlackElo "1782"]
[Annotator "NA RC"]
[PlyCount "126"]
[EventDate "2022.08.13"]
[EventCountry "POL"]
[SourceTitle "playchess.com"]
[Source "ChessBase"]
[SourceQuality "1"]
[TimeControl "40/5400+30:1800+30"]

1. e4 {[%emt 0:00:02]} e6 {[%emt 0:05:23]} 2. d3 {[%emt 0:00:24]} d5 {[%emt 0:00:06]} 3. Nd2 {[%emt 0:00:22]} c5 {[%emt 0:00:55]} 4. Ngf3 {[%emt 0:00:18]} Nc6 {[%emt 0:00:29]} 5. g3 {[%emt 0:00:27]} Bd6 {[%emt 0:00:14]} 6. Bg2 {[%emt 0:00:34]} Nge7 {[%emt 0:00:15]} 7. O-O {[%emt 0:00:22]} O-O {[%emt 0:00:08]} 8. Re1 {[%emt 0:01:44]} f6 {[%emt 0:01:11]} 9. Nf1 {[%emt 0:02:44]} d4 {[%emt 0:00:29]} 10. h4 {[%emt 0:02:46]} e5 {[%emt 0:07:04]} 11. h5 {[%emt 0:03:34]} Bg4 {[%emt 0:02:23]} 12. h6 {[%emt 0:00:15]} g5 {[%emt 0:02:53]} 13. N1h2 {[%emt 0:00:59]} Be6 {[%emt 0:06:01]} 14. Nd2 {[%emt 0:10:21]} Kh8 {[%emt 0:07:30]} 15. Nc4 {[%emt 0:04:18]} Bc7 {[%emt 0:00:22]} 16. Qh5 {[%emt 0:02:14]} Qe8 {[%emt 0:03:36]} 17. Bf3 {[%emt 0:09:35]} Ng8 {[%emt 0:09:05]} 18. Qxe8 {[%emt 0:06:14]} Raxe8 {[%emt 0:06:04]} 19. Ng4 {[%emt 0:01:39]} Re7 {[%emt 0:03:00]} 20. a4 {[%emt 0:04:50]} Bxg4 {[%emt 0:00:58]} 21. Bxg4 {[%emt 0:00:03]} Nxh6 {[%emt 0:00:19]} 22. Bh3 {[%emt 0:00:45]} Nb4 {[%emt 0:05:10]} 23. Na3 {[%emt 0:00:50]} Kg7 {[%emt 0:03:03]} 24. Bd2 {[%emt 0:02:15]} Nf7 {[%emt 0:03:45]} 25. Rf1 {[%emt 0:03:03]} h5 {[%emt 0:01:23]} 26. f3 {[%emt 0:03:23]} Rh8 {[%emt 0:02:24]} 27. Kg2 {[%emt 0:03:11]} h4 {[%emt 0:02:56]} 28. f4 {[%emt 0:02:47]} exf4 {[%emt 0:07:09]} 29. gxf4 {[%emt 0:00:25]} gxf4 {[%emt 0:02:19]} 30. Bxf4 {[%emt 0:00:27]} Bxf4 {[%emt 0:02:38]} 31. Rxf4 {[%emt 0:00:02]} Rh6 {[%emt 0:01:01]} 32. Raf1 {[%emt 0:05:23]} Re5 {[%emt 0:01:03]} 33. Rf5 {[%emt 0:01:43]} Nd6 {[%emt 0:03:06]} 34. R5f4 {[%emt 0:00:36]} Rg5+ {[%emt 0:00:23]} 35. Kh2 {[%emt 0:00:32]} Nf7 {[%emt 0:02:10]} 36. Bf5 {[%emt 0:02:43]} Nd6 {[%emt 0:01:04]} 37. Bh3 {[%emt 0:05:12]} b6 {[%emt 0:00:47]} 38. Bd7 {[%emt 0:01:17]} Kf7 {[%emt 0:00:59]} 39. R1f2 {[%emt 0:02:32]} Ke7 {[%emt 0:01:13]} 40. Bh3 {[%emt 0:00:00]} Nf7 {[%emt 0:00:00]} 41. Nc4 {[%emt 0:01:59]} Nc6 {[%emt 0:05:26]} 42. Na3 {[%emt 0:01:55]} Nfe5 {[%emt 0:02:46]} 43. Nb5 {[%emt 0:00:29]} a6 {[%emt 0:09:13]} 44. Nc7 {[%emt 0:00:22]} Nb4 {[%emt 0:00:16]} 45. Na8 {[%emt 0:05:16]} Nexd3 {[%emt 0:03:49]} 46. cxd3 {[%emt 0:00:09]} Nxd3 {[%emt 0:00:07]} 47. R4f3 {[%emt 0:00:37]} Nxf2 {[%emt 0:00:14]} 48. Rxf2 {[%emt 0:00:06]} Re5 {[%emt 0:02:12]} 49. Bf5 {[%emt 0:04:40]} b5 {[%emt 0:01:05]} 50. axb5 {[%emt 0:01:12]} axb5 {[%emt 0:00:06]} 51. Rd2 {[%emt 0:01:44]} Kd6 {[%emt 0:02:05]} 52. Nb6 {[%emt 0:00:48]} Kc6 {[%emt 0:04:18]} 53. Nc8 {[%emt 0:01:07]} Rh8 {[%emt 0:02:11]} 54. Na7+ {[%emt 0:03:21]} Kb6 {[%emt 0:00:30]} 55. Nc8+ {[%emt 0:00:20]} Ka5 {[%emt 0:00:28]} 56. Nd6 {[%emt 0:00:26]} Re7 {[%emt 0:01:17]} 57. Kh3 {[%emt 0:01:53]} Kb4 {[%emt 0:00:39]} 58. Nc8 {[%emt 0:00:42]} Rxc8 {[%emt 0:01:31]} 59. Bxc8 {[%emt 0:00:11]} Rxe4 {[%emt 0:00:06]} 60. Bf5 {[%emt 0:00:38]} Rf4 {[%emt 0:00:12]} 61. Bg4 {[%emt 0:00:19]} c4 {[%emt 0:00:28]} 62. Bd1 {[%emt 0:01:19]} d3 {[%emt 0:00:39]} 63. Bg4 {[%emt 0:00:27]} Kc5 {[%emt 0:00:15]} 0-1

[Event "58th Akiba Rubinstein B 2022"]
[Site "Polanica-Zdroj"]
[Date "2022.08.16"]
[Round "4.13"]
[White "Bartlomowicz, Jakub"]
[Black "Nowak, Roksana"]
[Result "1-0"]
[ECO "B96"]
[WhiteElo "1922"]
[BlackElo "1779"]
[Annotator "NA RC"]
[PlyCount "63"]
[EventDate "2022.08.13"]
[EventCountry "POL"]
[SourceTitle "playchess.com"]
[Source "ChessBase"]
[SourceQuality "1"]
[TimeControl "40/5400+30:1800+30"]

1. e4 {[%emt 0:00:02]} c5 {[%emt 0:00:06]} 2. Nf3 {[%emt 0:00:06]} d6 {[%emt 0:00:04]} 3. d4 {[%emt 0:00:07]} cxd4 {[%emt 0:00:06]} 4. Nxd4 {[%emt 0:00:04]} Nf6 {[%emt 0:00:09]} 5. Nc3 {[%emt 0:00:11]} a6 {[%emt 0:00:05]} 6. Bg5 {[%emt 0:00:11]} e6 {[%emt 0:00:19]} 7. f4 {[%emt 0:00:18]} h6 {[%emt 0:00:16]} 8. Bh4 {[%emt 0:00:42]} Qb6 {[%emt 0:00:28]} 9. a3 {[%emt 0:00:25]} Be7 {[%emt 0:00:19]} 10. Bf2 {[%emt 0:01:11]} Qc7 {[%emt 0:00:06]} 11. Qf3 {[%emt 0:00:41]} Nbd7 {[%emt 0:00:59]} 12. O-O-O {[%emt 0:01:35]} b5 {[%emt 0:02:46]} 13. g4 {[%emt 0:01:30]} g5 {[%emt 0:01:48]} 14. h4 {[%emt 0:16:57]} gxf4 {[%emt 0:00:34]} 15. Be2 {[%emt 0:03:04]} Ne5 {[%emt 0:06:33]} 16. Qxf4 {[%emt 0:00:07]} Nexg4 17. Bxg4 {[%emt 0:00:18]} e5 {[%emt 0:04:45]} 18. Qxf6 {[%emt 0:00:02]} Bxf6 {[%emt 0:00:08]} 19. Nd5 {[%emt 0:00:04]} Qb7 {[%emt 0:08:05]} 20. Nxf6+ {[%emt 0:02:03]} Kf8 {[%emt 0:22:43]} 21. Bxc8 {[%emt 0:00:06]} Rxc8 {[%emt 0:00:38]} 22. Nf5 {[%emt 0:00:08]} Qc6 {[%emt 0:01:03]} 23. c3 {[%emt 0:01:49]} Rd8 24. Rhg1 {[%emt 0:00:30]} d5 {[%emt 0:14:10]} 25. Nxd5 {[%emt 0:00:19]} h5 {[%emt 0:03:47]} 26. Be3 {[%emt 0:00:36]} f6 {[%emt 0:07:00]} 27. Bh6+ {[%emt 0:00:57]} Ke8 {[%emt 0:03:29]} 28. Rg7 {[%emt 0:00:03]} Rxh6 {[%emt 0:01:48]} 29. Nxh6 {[%emt 0:00:29]} Rxd5 {[%emt 0:01:42]} 30. Rxd5 {[%emt 0:00:09]} Qb6 {[%emt 0:01:40]} 31. Nf5 {[%emt 0:01:14]} a5 {[%emt 0:02:26]} 32. Rd6 {[%emt 0:00:10]} 1-0

[Event "58th Akiba Rubinstein B 2022"]
[Site "Polanica-Zdroj"]
[Date "2022.08.16"]
[Round "4.14"]
[White "Szydelko, Michal"]
[Black "Terkiewicz, Bruno"]
[Result "0-1"]
[ECO "B24"]
[WhiteElo "1833"]
[BlackElo "1473"]
[Annotator "NA RC"]
[PlyCount "82"]
[EventDate "2022.08.13"]
[EventCountry "POL"]
[SourceTitle "playchess.com"]
[Source "ChessBase"]
[SourceQuality "1"]
[TimeControl "40/5400+30:1800+30"]

1. e4 {[%emt 0:00:04]} c5 {[%emt 0:00:01]} 2. Nc3 {[%emt 0:02:45]} Nc6 3. g3 {[%emt 0:00:33]} g6 {[%emt 0:00:31]} 4. Bg2 {[%emt 0:00:08]} Bg7 {[%emt 0:00:04]} 5. Nf3 {[%emt 0:00:10]} d6 {[%emt 0:00:56]} 6. O-O {[%emt 0:00:11]} Nf6 {[%emt 0:00:46]} 7. d3 {[%emt 0:00:20]} O-O {[%emt 0:00:05]} 8. h3 {[%emt 0:05:20]} a6 {[%emt 0:01:06]} 9. Be3 {[%emt 0:03:50]} Bd7 {[%emt 0:04:47]} 10. Re1 {[%emt 0:07:39]} Qa5 {[%emt 0:04:33]} 11. Rb1 {[%emt 0:10:52]} b5 {[%emt 0:06:55]} 12. a3 {[%emt 0:15:30]} Rac8 {[%emt 0:02:46]} 13. Nd5 {[%emt 0:01:33]} e6 {[%emt 0:09:12]} 14. Nxf6+ {[%emt 0:09:58]} Bxf6 {[%emt 0:00:06]} 15. c3 {[%emt 0:04:37]} Rfd8 {[%emt 0:03:34]} 16. d4 {[%emt 0:00:30]} cxd4 {[%emt 0:00:43]} 17. Nxd4 {[%emt 0:00:15]} Ne5 {[%emt 0:03:47]} 18. Nb3 {[%emt 0:02:23]} Qc7 {[%emt 0:01:27]} 19. Bd4 {[%emt 0:00:06]} Bg7 {[%emt 0:00:25]} 20. Nd2 {[%emt 0:05:36]} Nd3 {[%emt 0:05:45]} 21. Bxg7 {[%emt 0:08:18]} Kxg7 {[%emt 0:10:09]} 22. Re3 {[%emt 0:01:58]} Nc5 {[%emt 0:00:24]} 23. Nf3 {[%emt 0:01:39]} Bc6 {[%emt 0:01:40]} 24. Nd4 {[%emt 0:00:20]} Ba8 {[%emt 0:00:49]} 25. Qg4 {[%emt 0:01:28]} e5 {[%emt 0:07:36]} 26. Nf5+ {[%emt 0:01:54]} Kf8 {[%emt 0:00:21]} 27. Nh6 {[%emt 0:00:47]} d5 {[%emt 0:04:38]} 28. exd5 {[%emt 0:02:15]} Bxd5 {[%emt 0:00:11]} 29. Qh4 {[%emt 0:09:04]} Bxg2 {[%emt 0:06:17]} 30. Kxg2 {[%emt 0:00:01]} Qc6+ {[%emt 0:00:43]} 31. Kg1 {[%emt 0:00:08]} e4 {[%emt 0:01:13]} 32. Ng4 {[%emt 0:00:41]} f5 {[%emt 0:06:06]} 33. Qh6+ {[%emt 0:05:18]} Kg8 {[%emt 0:00:33]} 34. Ne5 {[%emt 0:00:36]} Qf6 {[%emt 0:00:23]} 35. f4 {[%emt 0:00:16]} Nd3 {[%emt 0:02:12]} 36. Nxd3 {[%emt 0:00:49]} Rxd3 {[%emt 0:00:07]} 37. Rxd3 {[%emt 0:00:34]} exd3 {[%emt 0:00:06]} 38. Rd1 {[%emt 0:00:29]} Qb6+ {[%emt 0:00:54]} 39. Kg2 {[%emt 0:00:32]} Qe3 {[%emt 0:00:34]} 40. Rf1 {[%emt 0:00:00]} d2 {[%emt 0:00:00]} 41. g4 {[%emt 0:03:00]} Qe2+ {[%emt 0:00:59]} 0-1

[Event "58th Akiba Rubinstein B 2022"]
[Site "Polanica-Zdroj"]
[Date "2022.08.17"]
[Round "5.1"]
[White "Zerebiec, Maurycy"]
[Black "Jaworski, Tymon"]
[Result "1-0"]
[ECO "C20"]
[WhiteElo "1915"]
[BlackElo "1701"]
[Annotator "TA"]
[PlyCount "121"]
[EventDate "2022.08.13"]
[EventCountry "POL"]
[SourceTitle "playchess.com"]
[Source "ChessBase"]
[SourceQuality "1"]
[TimeControl "40/5400+30:1800+30"]

{[%evp 13,121,5,6,5,5,5,3,0,9,5,6,0,42,8,13,-7,-13,-31,0,-35,-31,-26,13,0,0,0,0,-30,-8,-2,0,0,0,0,0,0,0,0,0,0,0,0,0,0,0,0,0,0,0,0,0,0,7,0,0,0,0,0,0,0,0,0,0,0,0,0,0,0,474,0,760,706,1841,1721,1657,1495,1431,147,1355,1091,883,860,5693,5255,2536,993,12836,12836,12837,12836,12833,6303,29984,29985,29985,0,29986,29987,29987,29988,29988,29989,29990,29988,29988,29989,29989,29990,29991,29992]} 1. e4 {[%emt 0:00:09]} e5 {[%emt 0:00:33]} 2. c4 {[%emt 0:00:41]} d6 {[%emt 0:02:02]} 3. Nc3 {[%emt 0:00:01]} g6 {[%emt 0:00:26]} 4. g3 {[%emt 0:00:02]} Bg7 {[%emt 0:00:27]} 5. Bg2 {[%emt 0:00:02]} c5 {[%emt 0:00:57]} 6. Nge2 {[%emt 0:00:10]} Ne7 {[%emt 0:01:10]} 7. d3 {[%emt 0:00:03]} Nbc6 {[%emt 0:01:30]} 8. Be3 {[%emt 0:00:21] A36: Symmetrical English vs ...g6: 4 Bg2 Bg7.} O-O {[%emt 0:01:23]} 9. Qd2 {[%emt 0:00:19]} Be6 {[%emt 0:06:04]} 10. O-O {[%emt 0:02:26] The position is equal.} Qd7 {[%emt 0:02:44]} 11. f4 {[%emt 0:01:22]} f6 {[%emt 0:05:06]} 12. Rf2 {[%emt 0:04:38]} a6 {[%emt 0:09:16]} 13. Raf1 {[%emt 0:00:47]} (13. Nd5 $5 {[%cal Rd5b6]}) 13... Nd4 {[%emt 0:01:20] [#]} 14. h4 $146 {[%emt 0:02:13]} ({Predecessor:} 14. fxe5 fxe5 15. Nd5 Nxd5 16. exd5 Nxe2+ 17. Qxe2 Bf5 {½-½ (17) Gdovin,J (2227)-Kohout,P (2195) Czech Republic 2003}) 14... Bg4 {[%emt 0:03:42]} 15. Kh2 {[%emt 0:04:07]} b5 {[%emt 0:01:16]} (15... Rae8 {keeps more tension.} 16. fxe5 dxe5 17. Bh6 Nxe2 18. Nxe2 Bxh6 19. Qxh6 Bxe2 20. Rxe2 Nc6) 16. Ng1 {[%emt 0:03:21]} Rab8 {[%emt 0:09:12]} (16... Rae8 {feels hotter.} 17. fxe5 dxe5 18. Bh6 bxc4 19. dxc4 f5) 17. fxe5 {[%emt 0:05:11]} fxe5 {[%emt 0:00:28]} (17... dxe5 {is more complex.} 18. Nd5 f5 19. Bxd4 exd4 20. exf5 gxf5 21. Nxe7+ Qxe7 22. Ne2 Kh8) 18. Rxf8+ {[%emt 0:00:21]} (18. Nh3 {with more complications.} Rxf2 19. Rxf2 bxc4 20. dxc4 Rf8 21. Rxf8+ Kxf8 22. Nf2) 18... Rxf8 {[%emt 0:00:20]} (18... Bxf8 {looks sharper.} 19. b3 bxc4 20. bxc4 Bg7) 19. Rxf8+ {[%emt 0:00:02]} Bxf8 {[%emt 0:00:55]} 20. Bxd4 {[%emt 0:00:17]} cxd4 {[%emt 0:00:22]} 21. Nd5 {[%emt 0:00:13] [#] Strongly threatening Nf6+.} Nxd5 {[%emt 0:07:04]} (21... Kg7 {keeps more tension.} 22. Qf2 Nxd5 23. cxd5 Be7) 22. cxd5 {[%emt 0:00:30]} Be7 {[%emt 0:00:44]} 23. Bf3 {[%emt 0:05:02]} Kg7 {[%emt 0:07:07]} 24. Kg2 {[%emt 0:02:13]} Qc8 {[%emt 0:03:38]} 25. Bxg4 {[%emt 0:02:04]} Qxg4 $11 {[%emt 0:00:23][%mdl 4096] Endgame KQB-KQN} 26. Nf3 {[%emt 0:00:34]} Qc8 {[%emt 0:00:28] Inhibits Qc1.} 27. Kf2 {[%emt 0:05:11]} h6 {[%emt 0:03:15]} 28. Kg2 {[%emt 0:02:07]} Bd8 {[%emt 0:01:46]} 29. Nh2 {[%emt 0:03:45]} Be7 {[%emt 0:00:19]} 30. Qd1 {[%emt 0:01:09]} a5 {[%emt 0:02:49]} 31. Ng4 {[%emt 0:09:23]} a4 {[%emt 0:01:09]} 32. Nf2 {[%emt 0:00:50]} Qc5 {[%emt 0:01:37]} 33. a3 {[%emt 0:00:37]} Bd8 {[%emt 0:06:52]} 34. Qd2 {[%emt 0:00:09]} Qc8 {[%emt 0:03:11] Against Ng4} 35. Kf3 {[%emt 0:02:01]} Qd7 {[%emt 0:05:20]} 36. Kg2 {[%emt 0:07:57]} Qc8 {[%emt 0:01:35]} 37. Kf1 {[%emt 0:03:43]} g5 {[%emt 0:02:55][%cal Bg6g5,Bg5g4][%mdl 32]} 38. h5 {[%emt 0:01:30]} g4 $1 {[%emt 0:00:07]} 39. Qd1 {[%emt 0:03:41]} Bg5 {[%emt 0:00:22] And now ...Qc1 would win.} 40. Kg2 {[%emt 0:00:00]} (40. Qxg4 $2 Qxg4 41. Nxg4 Bc1 $19) 40... Qc1 $2 {[%emt 0:00:00][%mdl 8192] Black is now going downhill.} (40... Bc1 $11 41. Qe2 (41. Qxg4+ $2 Qxg4 42. Nxg4 Bxb2 $19) (41. Nxg4 Bxb2 42. Nxh6 Kxh6 $11) 41... Bg5) 41. Qe2 $2 {[%emt 0:08:31]} ({White must play} 41. Qxg4 $18 {Qd7+ is the strong threat.} Qc7 42. Qe6) 41... Qd2 $2 {[%emt 0:05:05][%mdl 8192]} (41... Be3 $11) 42. Qxg4 $18 {[%emt 0:00:03]} Qxb2 {[%emt 0:00:10]} 43. Qd7+ {[%emt 0:00:06]} Kg8 {[%emt 0:00:35]} 44. Qe6+ {[%emt 0:00:16]} ({Less strong is} 44. Qxd6 Be3 45. Qg6+ Kf8 $16) 44... Kh7 {[%emt 0:00:32]} 45. Qg6+ {[%emt 0:00:02]} Kh8 {[%emt 0:00:14]} 46. Qxd6 {[%emt 0:00:11]} b4 {[%emt 0:00:08]} 47. Qxe5+ {[%emt 0:00:15]} Kg8 {[%emt 0:00:46]} 48. d6 {[%emt 0:08:22]} bxa3 {[%emt 0:01:34]} 49. d7 {[%emt 0:02:20][%cal Oe5g5] Intending Qxg5+! and mate.} a2 {[%emt 0:01:52] [#]} 50. Qxg5+ $3 {[%emt 0:00:28][%mdl 512]} hxg5 {[%emt 0:00:29]} 51. d8=Q+ {[%emt 0:00:12]} Kf7 {[%emt 0:00:40]} 52. Qd7+ {[%emt 0:01:12]} Kf8 {[%emt 0:12:02]} 53. h6 {[%emt 0:05:00]} a1=Q {[%emt 0:00:08]} 54. Qg7+ {[%emt 0:04:31]} Ke8 {[%emt 0:00:19]} 55. h7 {[%emt 0:00:15][%cal Rh7h8] White mates.} Qxf2+ {[%emt 0:01:02]} 56. Kxf2 {[%emt 0:00:02][%cal Rh7h8] KQ-KQ} Qb2+ {[%emt 0:00:50]} 57. Kf3 {[%emt 0:00:34][%cal Rh7h8]} g4+ {[%emt 0:00:11]} 58. Qxg4 {[%emt 0:00:11]} Qh2 {[%emt 0:00:25]} 59. h8=Q+ {[%emt 0:00:22]} Qxh8 {[%emt 0:00:15]} 60. Qc8+ {[%emt 0:00:02]} Kf7 {[%emt 0:00:07]} 61. Qxh8 {[%emt 0:00:10] Weighted Error Value: White=0.13 (very precise) /Black=0.40} 1-0

[Event "58th Akiba Rubinstein B 2022"]
[Site "Polanica-Zdroj"]
[Date "2022.08.17"]
[Round "5.1"]
[White "Krzyzosiak, Anna"]
[Black "Grzadka, Artur"]
[Result "*"]
[WhiteElo "1496"]
[BlackElo "1720"]
[Annotator "NA RC"]
[PlyCount "47"]
[EventDate "2022.08.13"]
[EventCountry "POL"]
[SourceTitle "playchess.com"]
[Source "ChessBase"]
[SourceQuality "1"]
[TimeControl "40/5400+30:1800+30"]

1. e4 {[%emt 0:00:09]} e5 {[%emt 0:00:33]} 2. c4 {[%emt 0:00:41]} d6 {[%emt 0:02:02]} 3. Nc3 {[%emt 0:00:01]} g6 {[%emt 0:00:26]} 4. g3 {[%emt 0:00:02]} Bg7 {[%emt 0:00:27]} 5. Bg2 {[%emt 0:00:02]} c5 {[%emt 0:00:57]} 6. Nge2 {[%emt 0:00:10]} Ne7 {[%emt 0:01:10]} 7. d3 {[%emt 0:00:03]} Nbc6 {[%emt 0:01:30]} 8. Be3 {[%emt 0:00:21]} O-O {[%emt 0:01:23]} 9. Qd2 {[%emt 0:00:19]} Be6 {[%emt 0:06:04]} 10. O-O {[%emt 0:02:26]} Qd7 {[%emt 0:02:44]} 11. f4 {[%emt 0:01:22]} f6 {[%emt 0:05:06]} 12. Rf2 {[%emt 0:04:38]} a6 {[%emt 0:09:16]} 13. Raf1 {[%emt 0:00:47]} Nd4 {[%emt 0:01:20]} 14. h4 {[%emt 0:02:13]} Bg4 {[%emt 0:03:42]} 15. Kh2 {[%emt 0:04:07]} b5 {[%emt 0:01:16]} 16. Ng1 {[%emt 0:03:21]} Rab8 {[%emt 0:09:12]} 17. fxe5 {[%emt 0:05:11]} fxe5 {[%emt 0:00:28]} 18. Rxf8+ {[%emt 0:00:21]} Rxf8 {[%emt 0:00:20]} 19. Rxf8+ {[%emt 0:00:02]} Bxf8 {[%emt 0:00:55]} 20. Bxd4 {[%emt 0:00:17]} cxd4 {[%emt 0:00:22]} 21. Nd5 {[%emt 0:00:13]} Nxd5 {[%emt 0:07:04]} 22. cxd5 {[%emt 0:00:30]} Be7 {[%emt 0:00:44]} 23. Bf3 {[%emt 0:05:02]} Kg7 {[%emt 0:07:07]} 24. Kg2 {[%emt 0:02:13]} *

[Event "58th Akiba Rubinstein B 2022"]
[Site "Polanica-Zdroj"]
[Date "2022.08.17"]
[Round "5.2"]
[White "Halhoul, Adam"]
[Black "Chmiel, Marcin"]
[Result "0-1"]
[ECO "D44"]
[WhiteElo "1672"]
[BlackElo "2192"]
[Annotator "TA"]
[PlyCount "60"]
[EventDate "2022.08.13"]
[EventCountry "POL"]
[SourceTitle "playchess.com"]
[Source "ChessBase"]
[SourceQuality "1"]
[TimeControl "40/5400+30:1800+30"]

{[%evp 15,59,-79,-72,-73,-75,-68,-50,-85,-75,-72,-65,-72,-79,-75,-86,-127,-129,-127,-70,-227,-102,-109,39,22,24,-130,-122,-440,-418,-467,-327,-919,-908,-1528,-1512,-1425,-1473,-1700,-1366,-29995,-29989,-29989,-29990,-29990,-29991,-29999]} 1. d4 {[%emt 0:00:30]} d5 {[%emt 0:00:33]} 2. c4 {[%emt 0:00:13]} c6 {[%emt 0:00:06]} 3. Nf3 {[%emt 0:00:15]} Nf6 {[%emt 0:00:04]} 4. Nc3 {[%emt 0:00:06]} e6 {[%emt 0:00:13]} 5. Bg5 {[%emt 0:01:51]} dxc4 {[%emt 0:00:18]} 6. a4 {[%emt 0:00:16]} Bb4 {[%emt 0:00:53]} 7. e3 {[%emt 0:02:22]} b5 {[%emt 0:03:21]} 8. axb5 {[%emt 0:00:47]} cxb5 {[%emt 0:00:18]} 9. Nd2 {[%emt 0:00:03][%cal Of1c4] D44: Semi-Slav: Botvinnik System.} Qb6 $1 {[%emt 0:07:47]} 10. Bxf6 {[%emt 0:02:17]} gxf6 {[%emt 0:00:10]} 11. Qf3 {[%emt 0:02:29][%csl LRa8,LRf6] Black is slightly better.} Bb7 {[%emt 0:00:51]} (11... Bxc3 12. bxc3 (12. Qxa8 Bxb2 13. Qxa7 Qc6 $14) 12... Bb7 13. Qxf6 $14) 12. Qxf6 {[%emt 0:00:57]} Rg8 {[%emt 0:00:44]} 13. Qh4 {[%emt 0:07:12] [#]} Nd7 $1 {[%emt 0:02:59]} 14. Qxh7 {[%emt 0:14:07] [#]} O-O-O $146 {[%emt 0:09:06]} ({Predecessor:} 14... Nf6 15. Qc2 Ke7 16. b3 e5 17. dxe5 Ng4 18. bxc4 Nxe3 19. Qb3 bxc4 20. Nxc4 Nxc4 21. Bxc4 Rac8 22. Ra4 a5 23. Rxb4 Qxb4 24. Bxf7 Qxb3 25. Bxb3 Rxc3 {0-1 (25) Kudela,P (1492)-Szabo,V (2465) LSS email 2014}) 15. Qc2 {[%emt 0:03:34]} f5 {[%emt 0:09:14][%mdl 1024] Black has strong compensation.} ({Much less strong is} 15... Bxg2 16. Bxg2 Rxg2 17. Qe4 $14) 16. Rg1 {[%emt 0:12:29]} Nf6 {[%emt 0:03:03]} (16... Kb8 $17 17. g3 e5) 17. Na2 $2 {[%emt 0:17:01]} (17. g3 $15) 17... Qa5 {[%emt 0:07:28]} (17... Bxd2+ $19 {is more deadly.} 18. Qxd2 e5) 18. Qc1 $17 {[%emt 0:03:08]} Bd6 {[%emt 0:08:21] This bishop pair is nice.} ({Better is} 18... Bxd2+ $17 19. Qxd2 Qxd2+ 20. Kxd2 e5) 19. Nc3 $14 {[%emt 0:02:29]} Qb6 {[%emt 0:01:49] aiming for ...Kb8.} 20. g3 $2 {[%emt 0:07:21] [#]} (20. b3 $11 e5 21. Nxb5 exd4 22. Qxc4+ (22. Bxc4 $2 dxe3 23. Nxd6+ Kb8 $19) 22... Kb8 23. Qxd4 (23. Nxd4 $2 Bb4 $19) (23. Rxa7 $2 dxe3 24. Kd1 exd2 $19) 23... Qxd4 24. Nxd4) 20... Kb8 $1 $17 {[%emt 0:04:37]} 21. b3 $2 {[%emt 0:03:39][%mdl 8192]} (21. Bg2 $17 {is more resistant.}) 21... e5 $19 {[%emt 0:02:25]} 22. d5 {[%emt 0:02:28]} cxb3 {[%emt 0:03:39] And now ...Bb4 would win.} 23. Nxb5 $2 {[%emt 0:01:21]} (23. Rb1 Nxd5 24. Rxb3) 23... Bb4 {[%emt 0:03:40] Active counter play!} 24. d6 {[%emt 0:07:38]} Rxd6 {[%emt 0:01:42]} 25. Nxd6 {[%emt 0:00:29]} Qxd6 {[%emt 0:00:17]} 26. Qb2 {[%emt 0:04:42]} Rd8 {[%emt 0:01:41][%cal Rb4d2]} 27. Bh3 {[%emt 0:02:19]} Qxd2+ {[%emt 0:01:09] Black mates.} 28. Qxd2 {[%emt 0:00:01]} Rxd2 {[%emt 0:00:10]} 29. Kf1 {[%emt 0:00:21]} b2 {[%emt 0:01:11][%cal Rb2a1]} 30. Ra2 {[%emt 0:00:45]} b1=R# {Weighted Error Value: White=1.07/Black=0.34} 0-1

[Event "58th Akiba Rubinstein B 2022"]
[Site "Polanica-Zdroj"]
[Date "2022.08.17"]
[Round "5.2"]
[White "Chybalski, Piotr"]
[Black "Uliasz, Katarzyna"]
[Result "*"]
[WhiteElo "1665"]
[BlackElo "1566"]
[Annotator "NA RC"]
[PlyCount "32"]
[EventDate "2022.08.13"]
[EventCountry "POL"]
[SourceTitle "playchess.com"]
[Source "ChessBase"]
[SourceQuality "1"]
[TimeControl "40/5400+30:1800+30"]

1. d4 {[%emt 0:00:30]} d5 {[%emt 0:00:33]} 2. c4 {[%emt 0:00:13]} c6 {[%emt 0:00:06]} 3. Nf3 {[%emt 0:00:15]} Nf6 {[%emt 0:00:04]} 4. Nc3 {[%emt 0:00:06]} e6 {[%emt 0:00:13]} 5. Bg5 {[%emt 0:01:51]} dxc4 {[%emt 0:00:18]} 6. a4 {[%emt 0:00:16]} Bb4 {[%emt 0:00:53]} 7. e3 {[%emt 0:02:22]} b5 {[%emt 0:03:21]} 8. axb5 {[%emt 0:00:47]} cxb5 {[%emt 0:00:18]} 9. Nd2 {[%emt 0:00:03]} Qb6 {[%emt 0:07:47]} 10. Bxf6 {[%emt 0:02:17]} gxf6 {[%emt 0:00:10]} 11. Qf3 {[%emt 0:02:29]} Bb7 {[%emt 0:00:51]} 12. Qxf6 {[%emt 0:00:57]} Rg8 {[%emt 0:00:44]} 13. Qh4 {[%emt 0:07:12]} Nd7 {[%emt 0:02:59]} 14. Qxh7 {[%emt 0:14:07]} O-O-O {[%emt 0:09:06]} 15. Qc2 {[%emt 0:03:34]} f5 {[%emt 0:09:14]} 16. Rg1 {[%emt 0:12:29]} Nf6 {[%emt 0:03:03]} *